fUSD/lending_fUSD_20250606
["ID","MTS","AMOUNT","RATE_DAILY","PERIOD"]
[364769424,1749235851396,-777.77,0.00027561,5]
[364769425,1749235851406,-173.979423,0.00027561,7]
[364769426,1749235851417,-173.979423,0.00027561,7]
[364769427,1749235851427,-368.908945,0.00027561,7]
[364769428,1749235851438,-368.908945,0.00027561,7]
[364769429,1749235851448,-584.42,0.00027561,5]
[364769430,1749235851458,-934.57,0.00027561,5]
[364769431,1749235851468,-480.0,0.00027561,5]
[364769432,1749235851479,-1357.44,0.00027561,5]
[364769433,1749235851490,-150.0,0.00027561,5]
[364769434,1749235851500,-151.0,0.00027561,7]
[364769435,1749235851510,-151.0,0.00027561,7]
[364769436,1749235851521,-964.72,0.00027561,5]
[364769437,1749235851531,-634.22,0.00027561,5]
[364769438,1749235851541,-500.0,0.00027561,5]
[364769439,1749235851553,-1253.5,0.00027561,5]
[364769440,1749235851858,-2635.2,0.00027561,5]
[364769441,1749235851871,-762.65,0.00027561,5]
[364769442,1749235851881,-500.0,0.00027561,2]
[364769443,1749235851891,-3049.53,0.00027561,5]
[364769444,1749235851901,-500.0,0.00027561,5]
[364769445,1749235851911,-1146.22,0.00027561,5]
[364769446,1749235851920,-480.0,0.00027561,5]
[364769447,1749235851930,-150.0,0.00027561,5]
[364769448,1749235851940,-480.0,0.00027561,5]
[364769449,1749235851949,-480.0,0.00027561,5]
[364769450,1749235851959,-1279.29,0.00027561,5]
[364769451,1749235851969,-1272.534564,0.00027561,7]
[364769452,1749235851979,-480.0,0.00027561,5]
[364769453,1749235851988,-480.0,0.00027561,5]
[364769454,1749235851998,-1168.14,0.00027561,5]
[364769455,1749235852012,-480.0,0.00027561,5]
[364769456,1749235852022,-480.0,0.00027561,5]
[364769457,1749235852033,-1272.534564,0.00027561,7]
[364769458,1749235852043,-480.0,0.00027561,5]
[364769459,1749235852053,-1000.0,0.00027561,5]
[364769460,1749235852063,-480.0,0.00027561,5]
[364769461,1749235852073,-2995.42,0.00027561,5]
[364769462,1749235852083,-480.0,0.00027561,5]
[364769463,1749235852093,-500.0,0.00027561,2]
[364769464,1749235852104,-2177.26,0.00027561,5]
[364769465,1749235852115,-480.0,0.00027561,5]
[364769466,1749235852125,-575.24,0.00027561,5]
[364769467,1749235852135,-480.0,0.00027561,5]
[364769468,1749235852146,-1348.0,0.00027561,5]
[364769469,1749235852155,-726.46,0.00027561,5]
[364769470,1749235852166,-1000.0,0.00027561,2]
[364769471,1749235852176,-1065.19,0.00027561,5]
[364769472,1749235852188,-150.0,0.00027561,5]
[364769473,1749235852199,-150.0,0.00027561,5]
[364769474,1749235852208,-480.0,0.00027561,5]
[364769475,1749235852219,-151.0,0.00027561,7]
[364769476,1749235852229,-899.95,0.00027561,5]
[364769477,1749235852239,-480.0,0.00027561,5]
[364769478,1749235852249,-480.0,0.00027561,5]
[364769479,1749235852259,-1532.84,0.00027561,5]
[364769480,1749235852269,-480.0,0.00027561,5]
[364769481,1749235852279,-1474.16,0.00027561,5]
[364769482,1749235852289,-11668.77,0.00027561,5]
[364769483,1749235852299,-1868.47,0.00027561,5]
[364769484,1749235852309,-770.95,0.00027561,5]
[364769485,1749235852319,-4220.2,0.00027561,5]
[364769486,1749235852329,-1197.02,0.00027561,5]
[364769487,1749235852339,-1152.81,0.00027561,5]
[364769488,1749235852348,-1469.35,0.00027561,5]
[364769489,1749235852358,-1744.14,0.00027561,5]
[364769490,1749235852369,-817.36,0.00027561,5]
[364769491,1749235852379,-480.0,0.00027561,5]
[364769492,1749235852390,-265.946709,0.00027561,7]
[364769493,1749235852400,-517.44,0.00027561,5]
[364769494,1749235852411,-265.946709,0.00027561,7]
[364769495,1749235852421,-840.34,0.00027561,5]
[364769496,1749235852431,-2470.02,0.00027561,5]
[364769497,1749235852441,-480.0,0.00027561,5]
[364769498,1749235852451,-480.0,0.00027561,5]
[364769499,1749235852461,-1287.44,0.00027561,5]
[364769500,1749235852471,-265.946709,0.00027561,7]
[364769501,1749235852481,-265.946709,0.00027561,7]
[364769502,1749235852493,-1242.04,0.00027561,5]
[364769503,1749235852503,-490.38619813,0.00027561,5]
[364769504,1749235852513,-1322.09,0.00027561,5]
[364769505,1749235852523,-151.0,0.00027561,7]
[364769506,1749235852534,-151.0,0.00027561,7]
[364769507,1749235852544,-686.82,0.00027561,5]
[364769508,1749235852554,-151.0,0.00027561,7]
[364769509,1749235852564,-151.0,0.00027561,7]
[364769510,1749235852574,-308.78,0.00027561,5]
[364769511,1749235852584,-151.0,0.00027561,7]
[364769512,1749235852594,-480.0,0.00027561,5]
[364769513,1749235852604,-597.58,0.00027561,5]
[364769514,1749235852615,-480.0,0.00027561,5]
[364769515,1749235852625,-364.24957182,0.00027561,5]
[364769516,1749235852635,-986.35,0.00027561,5]
[364769517,1749235852645,-7769.67,0.00027561,5]
[364769518,1749235852655,-480.0,0.00027561,5]
[364769519,1749235852666,-480.0,0.00027561,5]
[364769520,1749235852676,-628.45,0.00027561,5]
[364769521,1749235852687,-670.32,0.00027561,5]
[364769522,1749235852698,-480.0,0.00027561,5]
[364769523,1749235852708,-1543.01,0.00027561,5]
[364769524,1749235852718,-1293.64,0.00027561,5]
[364769525,1749235852728,-362.87284148,0.00027561,5]
[364769526,1749235852739,-1765.26,0.00027561,5]
[364769527,1749235852748,-480.0,0.00027561,5]
[364769528,1749235852758,-219.313061,0.00027561,7]
[364769529,1749235852769,-219.313061,0.00027561,7]
[364769530,1749235852780,-480.0,0.00027561,5]
[364769531,1749235852789,-219.313061,0.00027561,7]
[364769532,1749235852799,-480.0,0.00027561,5]
[364769533,1749235852809,-591.68,0.00027561,5]
[364769534,1749235852819,-966.08,0.00027561,5]
[364769535,1749235852829,-480.0,0.00027561,5]
[364769536,1749235852839,-2051.02,0.00027561,5]
[364769537,1749235852849,-552.92,0.00027561,5]
[364769538,1749235852859,-480.0,0.00027561,5]
[364769539,1749235852869,-219.313061,0.00027561,7]
[364769540,1749235852879,-480.0,0.00027561,5]
[364769541,1749235852888,-219.313061,0.00027561,7]
[364769542,1749235852898,-219.313061,0.00027561,7]
[364769543,1749235852908,-957.91,0.00027561,5]
[364769544,1749235852917,-522.01,0.00027561,5]
[364769545,1749235852926,-15613.76,0.00027561,5]
[364769546,1749235852936,-150.0,0.00027561,5]
[364769547,1749235852945,-480.0,0.00027561,5]
[364769548,1749235852954,-480.0,0.00027561,5]
[364769549,1749235852964,-1176.0,0.00027561,5]
[364769550,1749235852973,-3248.23,0.00027561,5]
[364769551,1749235852983,-480.0,0.00027561,5]
[364769552,1749235852992,-216.438203,0.00027561,7]
[364769553,1749235853002,-1918.96,0.00027561,5]
[364769554,1749235853011,-480.0,0.00027561,5]
[364769555,1749235853021,-151.0,0.00027561,7]
[364769556,1749235853031,-3308.06,0.00027561,5]
[364769557,1749235853041,-151.0,0.00027561,7]
[364769558,1749235853050,-480.0,0.00027561,5]
[364769559,1749235853061,-480.0,0.00027561,5]
[364769560,1749235853071,-216.438203,0.00027561,7]
[364769561,1749235853082,-1755.2,0.00027561,5]
[364769562,1749235853093,-642.51,0.00027561,5]
[364769563,1749235853102,-480.0,0.00027561,5]
[364769564,1749235853112,-480.0,0.00027561,5]
[364769565,1749235853121,-586.76,0.00027561,5]
[364769566,1749235853131,-480.0,0.00027561,5]
[364769567,1749235853141,-151.0,0.00027561,7]
[364769568,1749235853150,-151.0,0.00027561,7]
[364769569,1749235853160,-480.0,0.00027561,5]
[364769570,1749235853169,-151.0,0.00027561,7]
[364769571,1749235853179,-500.0,0.00027561,5]
[364769572,1749235853188,-507.85,0.00027561,5]
[364769573,1749235853198,-1009.78,0.00027561,5]
[364769574,1749235853207,-480.0,0.00027561,5]
[364769575,1749235853216,-1571.86,0.00027561,5]
[364769576,1749235853226,-206.281646,0.00027561,7]
[364769577,1749235853240,-11726.76,0.00027561,5]
[364769578,1749235853249,-480.0,0.00027561,5]
[364769579,1749235853259,-487.06,0.00027561,5]
[364769580,1749235853269,-3330.44,0.00027561,5]
[364769581,1749235853279,-480.0,0.00027561,5]
[364769582,1749235853288,-480.0,0.00027561,5]
[364769583,1749235853299,-587.18,0.00027561,5]
[364769584,1749235853308,-480.0,0.00027561,5]
[364769585,1749235853318,-803.06,0.00027561,5]
[364769586,1749235853327,-480.0,0.00027561,5]
[364769587,1749235853337,-993.53,0.00027561,5]
[364769588,1749235853346,-660.42,0.00027561,5]
[364769589,1749235853356,-480.0,0.00027561,5]
[364769590,1749235853366,-1545.01,0.00027561,5]
[364769591,1749235853377,-1620.12,0.00027561,5]
[364769592,1749235853387,-524.61,0.00027561,5]
[364769593,1749235853397,-1105.53,0.00027561,5]
[364769594,1749235853407,-480.0,0.00027561,5]
[364769595,1749235853419,-481.7728298,0.00027561,5]
[364769596,1749235853428,-649.56,0.00027561,5]
[364769597,1749235853438,-600.8,0.00027561,5]
[364769598,1749235853448,-1548.31,0.00027561,5]
[364769599,1749235853457,-1753.23,0.00027561,5]
[364769600,1749235853467,-863.65,0.00027561,5]
[364769601,1749235853476,-597.5,0.00027561,5]
[364769602,1749235853486,-3080.35,0.00027561,5]
[364769603,1749235853496,-480.0,0.00027561,5]
[364769604,1749235853507,-480.0,0.00027561,5]
[364769605,1749235853517,-700.61,0.00027561,5]
[364769606,1749235853527,-5287.4,0.00027561,5]
[364769607,1749235853536,-480.0,0.00027561,5]
[364769608,1749235853546,-4468.21,0.00027561,5]
[364769609,1749235853556,-2266.06,0.00027561,5]
[364769610,1749235853566,-1358.96,0.00027561,5]
[364769611,1749235853575,-547.41,0.00027561,5]
[364769612,1749235853584,-522.95,0.00027561,5]
[364769613,1749235853594,-480.0,0.00027561,5]
[364769614,1749235853604,-480.0,0.00027561,5]
[364769615,1749235853614,-151.0,0.00027561,7]
[364769616,1749235853624,-680.34,0.00027561,5]
[364769617,1749235853633,-151.0,0.00027561,7]
[364769618,1749235853643,-480.0,0.00027561,5]
[364769619,1749235853653,-151.0,0.00027561,7]
[364769620,1749235853663,-728.29,0.00027561,5]
[364769621,1749235853673,-480.0,0.00027561,5]
[364769622,1749235853683,-480.0,0.00027561,5]
[364769623,1749235853695,-825.52,0.00027561,5]
[364769624,1749235853705,-3555.42,0.00027561,5]
[364769625,1749235853715,-3076.73,0.00027561,5]
[364769626,1749235853724,-480.0,0.00027561,5]
[364769627,1749235853734,-820.31,0.00027561,5]
[364769628,1749235853744,-480.0,0.00027561,5]
[364769629,1749235853754,-480.0,0.00027561,5]
[364769630,1749235853765,-640.97,0.00027561,5]
[364769631,1749235853779,-480.0,0.00027561,5]
[364769632,1749235853790,-5262.38,0.00027561,5]
[364769633,1749235853800,-713.32,0.00027561,5]
[364769634,1749235853810,-7766.09,0.00027561,5]
[364769635,1749235853821,-480.0,0.00027561,2]
[364769636,1749235853831,-1713.32,0.00027561,5]
[364769637,1749235853841,-1437.37431,0.00027561,7]
[364769638,1749235853851,-1437.37431,0.00027561,7]
[364769639,1749235853860,-480.0,0.00027561,5]
[364769640,1749235853870,-1437.37431,0.00027561,7]
[364769641,1749235853879,-1250.1,0.00027561,5]
[364769642,1749235853889,-1724.46,0.00027561,5]
[364769643,1749235853899,-3124.76,0.00027561,5]
[364769644,1749235853908,-480.0,0.00027561,2]
[364769645,1749235853917,-1437.37431,0.00027561,7]
[364769646,1749235853926,-3288.91,0.00027561,5]
[364769647,1749235853936,-1437.37431,0.00027561,7]
[364769648,1749235853945,-480.0,0.00027561,5]
[364769649,1749235853955,-1437.37431,0.00027561,7]
[364769650,1749235853964,-480.0,0.00027561,5]
[364769651,1749235853973,-480.0,0.00027561,5]
[364769652,1749235853983,-2017.76,0.00027561,5]
[364769653,1749235853992,-480.0,0.00027561,5]
[364769654,1749235854002,-150.0,0.00027566,2]
[364769655,1749235854012,-488.10353959,0.00027573,5]
[364769656,1749235854021,-500.27068717,0.00027573,5]
[364769657,1749235854031,-500.0,0.00027573,5]
[364769658,1749235854041,-190.5316047,0.00027573,5]
[364769659,1749235854050,-501.22771874,0.00027573,5]
[364769660,1749235854060,-506.86388459,0.00027573,5]
[364769661,1749235854070,-500.0,0.00027573,5]
[364769662,1749235854079,-500.0,0.00027573,5]
[364769663,1749235854090,-500.0,0.00027573,5]
[364769664,1749235854100,-500.0,0.00027573,5]
[364769665,1749235854110,-195.41410018,0.00027573,5]
[364769666,1749235854120,-500.0,0.00027573,5]
[364769667,1749235854130,-167.154154,0.00027573,7]
[364769668,1749235854140,-167.154154,0.00027573,7]
[364769669,1749235854150,-3077.533,0.00027573,17]
[364769670,1749235854160,-187.485,0.00027573,17]
[364769671,1749235854169,-252.915718,0.00027588,7]
[364769672,1749235854179,-252.915718,0.00027588,7]
[364769673,1749235854189,-1272.534564,0.00027588,7]
[364769674,1749235854198,-1272.534564,0.00027588,7]
[364769675,1749235854208,-151.0,0.00027588,7]
[364769676,1749235854217,-500.0,0.00027588,5]
[364769677,1749235854230,-500.0,0.00027588,2]
[364769678,1749235854240,-500.0,0.00027588,5]
[364769679,1749235854249,-150.0,0.00027588,5]
[364769680,1749235854259,-500.0,0.00027588,2]
[364769681,1749235854270,-1348.0,0.00027588,5]
[364769682,1749235854279,-150.0,0.00027588,5]
[364769683,1749235854288,-200.0,0.00027588,5]
[364769684,1749235854298,-150.0,0.00027588,5]
[364769685,1749235854307,-1176.0,0.00027588,5]
[364769686,1749235854320,-500.0,0.00027588,5]
[364769687,1749235854330,-179.328954,0.000276,7]
[364769688,1749235854339,-179.328954,0.000276,7]
[364769689,1749235854350,-151.0,0.000276,7]
[364769690,1749235854360,-151.0,0.000276,7]
[364769691,1749235854369,-707.706187,0.000276,7]
[364769692,1749235854379,-707.706187,0.000276,7]
[364769693,1749235854389,-460.479112,0.000276,7]
[364769694,1749235854399,-460.479112,0.000276,7]
[364769695,1749235854409,-208.232114,0.000276,7]
[364769696,1749235854419,-208.232114,0.000276,7]
[364769697,1749235854428,-151.0,0.000276,7]
[364769698,1749235854438,-151.0,0.000276,7]
[364769699,1749235854447,-360.912589,0.000276,7]
[364769700,1749235854457,-991.618317,0.000276,7]
[364769701,1749235854467,-188.708177,0.000276,7]
[364769702,1749235854476,-151.4469,0.000276,7]
[364769703,1749235854485,-188.708177,0.000276,7]
[364769704,1749235854495,-341.15362,0.000276,7]
[364769705,1749235854504,-341.15362,0.000276,7]
[364769706,1749235854513,-189.428531,0.000276,7]
[364769707,1749235854523,-189.428531,0.000276,7]
[364769708,1749235854532,-172.711447,0.000276,7]
[364769709,1749235854541,-172.711447,0.000276,7]
[364769710,1749235854550,-151.0,0.000276,7]
[364769711,1749235854560,-151.0,0.000276,7]
[364769712,1749235854569,-723.35,0.000276,2]
[364769713,1749235854579,-1973.737762,0.000276,7]
[364769714,1749235854588,-1973.737762,0.000276,7]
[364769715,1749235854597,-3200.0,0.000276,10]
[364769716,1749235854607,-150.0,0.00027603,2]
[364769717,1749235854616,-500.0,0.00027616,5]
[364769718,1749235854626,-500.0,0.00027616,2]
[364769719,1749235854636,-500.0,0.00027616,5]
[364769720,1749235854646,-150.0,0.00027616,5]
[364769721,1749235854655,-500.0,0.00027616,2]
[364769722,1749235854664,-1348.0,0.00027616,5]
[364769723,1749235854673,-150.0,0.00027616,5]
[364769724,1749235854682,-150.0,0.00027616,5]
[364769725,1749235854694,-1176.0,0.00027616,5]
[364769726,1749235854704,-500.0,0.00027616,5]
[364769727,1749235854714,-505.0,0.00027622,5]
[364769728,1749235854723,-151.0,0.00027643,7]
[364769729,1749235854736,-178.005479,0.00027643,7]
[364769730,1749235854749,-151.0,0.00027643,7]
[364769731,1749235854764,-272.493957,0.00027643,7]
[364769732,1749235854777,-272.493957,0.00027643,7]
[364769733,1749235854788,-151.0,0.00027643,7]
[364769734,1749235854800,-151.0,0.00027643,7]
[364769735,1749235854814,-151.0,0.00027643,7]
[364769736,1749235854827,-151.0,0.00027643,7]
[364769737,1749235854839,-407.327595,0.00027643,7]
[364769738,1749235854853,-407.327595,0.00027643,7]
[364769739,1749235854866,-151.0,0.00027643,7]
[364769740,1749235854878,-169.411927,0.00027643,7]
[364769741,1749235854888,-169.411927,0.00027643,7]
[364769742,1749235854903,-9228.148532,0.00027643,7]
[364769743,1749235854915,-9228.148532,0.00027643,7]
[364769744,1749235854928,-151.0,0.00027643,7]
[364769745,1749235854940,-151.0,0.00027643,7]
[364769746,1749235854953,-151.0,0.00027643,7]
[364769747,1749235854965,-237.337415,0.00027643,7]
[364769748,1749235854978,-237.337415,0.00027643,7]
[364769749,1749235854990,-151.0,0.00027643,7]
[364769750,1749235855003,-214.477622,0.00027643,7]
[364769751,1749235855015,-214.477622,0.00027643,7]
[364769752,1749235855028,-368.908945,0.00027643,7]
[364769753,1749235855040,-368.908945,0.00027643,7]
[364769754,1749235855052,-151.0,0.00027643,7]
[364769755,1749235855066,-500.0,0.00027643,5]
[364769756,1749235855077,-500.0,0.00027643,2]
[364769757,1749235855089,-500.0,0.00027643,5]
[364769758,1749235855102,-288.41801222,0.00027643,5]
[364769759,1749235855117,-500.0,0.00027643,2]
[364769760,1749235855132,-1348.0,0.00027643,5]
[364769761,1749235855144,-150.0,0.00027643,5]
[364769762,1749235855156,-150.0,0.00027643,5]
[364769763,1749235855167,-1176.0,0.00027643,5]
[364769764,1749235855178,-500.0,0.00027643,5]
[364769765,1749235855193,-193.744307,0.0002765,7]
[364769766,1749235855208,-193.744307,0.0002765,7]
[364769767,1749235855220,-150.0,0.00027652,2]
[364769768,1749235855231,-1000.0,0.00027663,2]
[364769769,1749235855242,-749.71695278,0.00027667,2]
[364769770,1749235855254,-645.62865551,0.00027671,5]
[364769771,1749235855267,-500.0,0.00027671,2]
[364769772,1749235855283,-500.0,0.00027671,5]
[364769773,1749235855296,-500.0,0.00027671,2]
[364769774,1749235855306,-1348.0,0.00027671,5]
[364769775,1749235855317,-176.74963658,0.00027671,5]
[364769776,1749235855328,-150.0,0.00027671,5]
[364769777,1749235855340,-1176.0,0.00027671,5]
[364769778,1749235855352,-500.0,0.00027671,5]
[364769779,1749235855364,-151.0,0.00027671,7]
[364769780,1749235855375,-151.0,0.00027671,7]
[364769781,1749235855387,-718.524046,0.00027671,7]
[364769782,1749235855399,-718.524046,0.00027671,7]
[364769783,1749235855410,-162.017426,0.00027671,7]
[364769784,1749235855422,-162.017426,0.00027671,7]
[364769785,1749235855434,-151.0,0.00027671,7]
[364769786,1749235855446,-200.0,0.00027671,2]
[364769787,1749235855459,-151.0,0.00027671,7]
[364769788,1749235855471,-151.0,0.00027671,7]
[364769789,1749235855483,-151.0,0.00027671,7]
[364769790,1749235855495,-151.0,0.00027671,7]
[364769791,1749235855506,-273.50469,0.00027671,7]
[364769792,1749235855518,-273.50469,0.00027671,7]
[364769793,1749235855530,-200.0,0.00027671,2]
[364769794,1749235855542,-151.0,0.00027671,7]
[364769795,1749235855557,-151.0,0.00027671,7]
[364769796,1749235855568,-1814.431584,0.00027671,7]
[364769797,1749235855581,-1814.431584,0.00027671,7]
[364769798,1749235855593,-473.133255,0.00027671,7]
[364769799,1749235855607,-473.133255,0.00027671,7]
[364769800,1749235855619,-200.0,0.00027671,2]
[364769801,1749235855631,-1346.270536,0.00027671,7]
[364769802,1749235855644,-1346.270536,0.00027671,7]
[364769803,1749235855656,-173.979423,0.00027671,7]
[364769804,1749235855669,-173.979423,0.00027671,7]
[364769805,1749235855682,-211.60439565,0.00027671,2]
[364769806,1749235855697,-265.946709,0.00027671,7]
[364769807,1749235855710,-265.946709,0.00027671,7]
[364769808,1749235855722,-151.0,0.00027671,7]
[364769809,1749235855735,-151.0,0.00027671,7]
[364769810,1749235855747,-200.0,0.00027671,2]
[364769811,1749235855759,-161.53742109,0.0002769,2]
[364769812,1749235855771,-228.7115907,0.00027698,2]
[364769813,1749235855784,-500.0,0.00027698,5]
[364769814,1749235855795,-500.0,0.00027698,2]
[364769815,1749235855808,-1348.0,0.00027698,5]
[364769816,1749235855820,-199.70883138,0.00027698,5]
[364769817,1749235855832,-1176.0,0.00027698,5]
[364769818,1749235855843,-500.0,0.00027698,5]
[364769819,1749235855856,-4100.0,0.000277,10]
[364769820,1749235855868,-150.0,0.00027711,2]
[364769821,1749235855879,-273.28650428,0.00027716,2]
[364769822,1749235855891,-500.0,0.00027725,5]
[364769823,1749235855903,-500.0,0.00027725,2]
[364769824,1749235855915,-1348.0,0.00027725,5]
[364769825,1749235855926,-1176.0,0.00027725,5]
[364769826,1749235855937,-500.0,0.00027725,5]
[364769827,1749235855949,-151.0,0.00027726,7]
[364769828,1749235855961,-151.0,0.00027726,7]
[364769829,1749235855973,-151.0,0.00027726,7]
[364769830,1749235855984,-151.0,0.00027726,7]
[364769831,1749235855996,-1390.982696,0.00027726,7]
[364769832,1749235856008,-1390.982696,0.00027726,7]
[364769833,1749235856019,-151.0,0.00027726,7]
[364769834,1749235856031,-151.0,0.00027726,7]
[364769835,1749235856042,-151.0,0.00027726,7]
[364769836,1749235856053,-217.753451,0.00027726,7]
[364769837,1749235856070,-217.753451,0.00027726,7]
[364769838,1749235856082,-179.328954,0.00027726,7]
[364769839,1749235856093,-179.328954,0.00027726,7]
[364769840,1749235856105,-151.0,0.00027726,7]
[364769841,1749235856116,-151.0,0.00027726,7]
[364769842,1749235856128,-167.154154,0.00027726,7]
[364769843,1749235856139,-167.154154,0.00027726,7]
[364769844,1749235856151,-707.706187,0.00027726,7]
[364769845,1749235856161,-707.706187,0.00027726,7]
[364769846,1749235856173,-460.479112,0.00027726,7]
[364769847,1749235856184,-460.479112,0.00027726,7]
[364769848,1749235856196,-208.232114,0.00027726,7]
[364769849,1749235856207,-208.232114,0.00027726,7]
[364769850,1749235856219,-151.0,0.00027726,7]
[364769851,1749235856231,-151.0,0.00027726,7]
[364769852,1749235856242,-360.912589,0.00027726,7]
[364769853,1749235856254,-991.618317,0.00027726,7]
[364769854,1749235856265,-188.708177,0.00027726,7]
[364769855,1749235856277,-188.708177,0.00027726,7]
[364769856,1749235856288,-341.15362,0.00027726,7]
[364769857,1749235856300,-341.15362,0.00027726,7]
[364769858,1749235856310,-189.428531,0.00027726,7]
[364769859,1749235856323,-189.428531,0.00027726,7]
[364769860,1749235856334,-172.711447,0.00027726,7]
[364769861,1749235856346,-172.711447,0.00027726,7]
[364769862,1749235856358,-151.0,0.00027726,7]
[364769863,1749235856378,-1062.011773,0.00027726,5]
[364769864,1749235856394,-151.0,0.00027726,7]
[364769865,1749235856408,-265.507238,0.00027726,7]
[364769866,1749235856421,-151.0,0.00027726,7]
[364769867,1749235856436,-1179.930096,0.00027726,5]
[364769868,1749235856452,-151.0,0.00027726,7]
[364769869,1749235856465,-1525.387214,0.00027726,7]
[364769870,1749235856478,-1525.387214,0.00027726,7]
[364769871,1749235856491,-151.0,0.00027726,7]
[364769872,1749235856509,-1525.387214,0.00027726,7]
[364769873,1749235856522,-1525.387214,0.00027726,7]
[364769874,1749235856535,-277.913884,0.00027726,7]
[364769875,1749235856547,-600.0,0.00027726,30]
[364769876,1749235856560,-277.913884,0.00027726,7]
[364769877,1749235856573,-480.0,0.00027726,5]
[364769878,1749235856585,-426.807301,0.00027726,7]
[364769879,1749235856598,-426.807301,0.00027726,7]
[364769880,1749235856612,-480.0,0.00027726,5]
[364769881,1749235856625,-480.0,0.00027726,5]
[364769882,1749235856637,-426.807301,0.00027726,7]
[364769883,1749235856649,-426.807301,0.00027726,7]
[364769884,1749235856661,-480.0,0.00027726,5]
[364769885,1749235856674,-480.0,0.00027726,5]
[364769886,1749235856688,-151.0,0.00027726,7]
[364769887,1749235856702,-151.0,0.00027726,7]
[364769888,1749235856714,-151.0,0.00027726,7]
[364769889,1749235856728,-158.326809,0.00027726,7]
[364769890,1749235856741,-170.836294,0.00027726,7]
[364769891,1749235856754,-170.836294,0.00027726,7]
[364769892,1749235856767,-193.744307,0.00027726,7]
[364769893,1749235856779,-193.744307,0.00027726,7]
[364769894,1749235856791,-189.54832,0.00027726,5]
[364769895,1749235856803,-193.744307,0.00027726,7]
[364769896,1749235856815,-193.744307,0.00027726,7]
[364769897,1749235856829,-480.0,0.00027726,5]
[364769898,1749235856841,-964.33,0.00027726,5]
[364769899,1749235856853,-480.0,0.00027726,5]
[364769900,1749235856868,-151.0,0.00027726,7]
[364769901,1749235856880,-151.0,0.00027726,7]
[364769902,1749235856892,-480.0,0.00027726,5]
[364769903,1749235856903,-567.51966202,0.00027726,5]
[364769904,1749235856915,-480.0,0.00027726,5]
[364769905,1749235856927,-508.62,0.00027726,5]
[364769906,1749235856939,-348.052978,0.00027726,5]
[364769907,1749235856950,-690.93,0.00027726,5]
[364769908,1749235856963,-480.0,0.00027726,5]
[364769909,1749235856974,-480.0,0.00027726,5]
[364769910,1749235856985,-394.77393986,0.00027726,5]
[364769911,1749235856996,-480.0,0.00027726,5]
[364769912,1749235857007,-480.0,0.00027726,5]
[364769913,1749235857018,-480.0,0.00027726,5]
[364769914,1749235857029,-480.0,0.00027726,5]
[364769915,1749235857041,-208.677067,0.00027726,5]
[364769916,1749235857052,-151.0,0.00027726,7]
[364769917,1749235857064,-153.0604,0.00027726,7]
[364769918,1749235857075,-151.0,0.00027726,7]
[364769919,1749235857087,-151.0,0.00027726,7]
[364769920,1749235857098,-164.656632,0.00027726,7]
[364769921,1749235857109,-539.32430531,0.00027726,5]
[364769922,1749235857120,-571.03,0.00027726,5]
[364769923,1749235857131,-480.0,0.00027726,5]